Cogmind - Beta 11 @@@ ROGUE MODE // 2022.03.25 @ 09:33:35 Player: Happytimes Result: Self-destructed Performance ------------- Evolutions (3) 1500 Regions Visited (6) 1200 Robots Destroyed (33) 165 Value Destroyed (1148) 1148 Prototype IDs (9) 180 Alien Tech Used (0) 0 Bonus (300) 300 TOTAL SCORE: 4493 Bonus ------- Aligned with FarCom 300 Cogmind --------- Core Integrity 651/700 Matter 300/300 Energy 290/290 System Corruption 3% Temperature Cool (0) Movement Walking (190) Ox1 Location -7/Factory Parts ------- > --- POWER (1) -------- Reinforced Deuterium Engine > --- PROPULSION (4) --- Improved Carbon-fiber Leg > --- UTILITY (4) ------ Improved Salvage Targeting Computer Microactuators Force Booster > --- WEAPON (4) ------- Heavy Flail Axe > --- INVENTORY (5) ---- Gauss Rifle Precision Assault Rifle Precision Assault Rifle Improved Grenade Launcher Datajack Peak State ------------ > --- POWER ------------ Heavy Ion Engine > --- PROPULSION ------- Aerolev Unit Aerolev Unit Combat Airjet > --- UTILITY ---------- Small Storage Unit Improved Salvage Targeting Computer Improved Salvage Targeting Computer Force Booster > --- WEAPON ----------- AWS/Thermal Heavy Flail > --- INVENTORY -------- Improved Carbon-fiber Leg Improved Hover Unit Gauss Rifle Precision Assault Rifle Precision Assault Rifle Improved Grenade Launcher Datajack Axe [Rating: 50] Favorites ----------- Power Micro Nuclear Core Engine Light Ion Engine Power Core Micro Nuclear Core Propulsion Compact Wheel Leg Improved Carbon-fiber Leg Wheel Compact Wheel Hover Unit Improved Hover Unit Flight Unit Cesium-ion Thruster Utility Small Storage Unit Device Force Booster Storage Small Storage Unit Processor Targeting Computer Protection Light Armor Plating Weapon AWS/Thermal Energy Gun AWS/Thermal Ballistic Gun Assault Rifle Ballistic Cannon Assault Cannon Impact Weapon Heavy Flail Slashing Weapon Axe Special Melee Weapon Datajack Build | -11 -10 -10 -10 -9 -8 -7 ------- Run | Scr Mat Min Exi Min Mat Fac Slots Evolved 6 | . . . . . 4 2 Power . | . . . . . . . Propulsion 2 | . . . . . 1 1 Utility 2 | . . . . . 2 . Weapon 2 | . . . . . 1 1 Parts Attached 49 | 6 1 1 7 1 31 2 Power 6 | 1 . 1 . 1 3 . Engine 5 | 1 . 1 . . 3 . Core 1 | . . . . 1 . . Reactor . | . . . . . . . Propulsion 11 | 2 . . . . 8 1 Treads . | . . . . . . . Leg 1 | . . . . . . 1 Wheel 2 | 2 . . . . . . Hover 7 | . . . . . 7 . Flight 1 | . . . . . 1 . Utility 12 | 1 1 . 4 . 5 1 Device 2 | . . . . . 1 1 Storage 2 | 1 . . 1 . . . Processor 5 | . . . 1 . 4 . Hackware . | . . . . . . . Protection 3 | . 1 . 2 . . . Artifact . | . . . . . . . Weapon 20 | 2 . . 3 . 15 . Energy Gun 4 | . . . 2 . 2 . Energy Cannon . | . . . . . . . Ballistic Gun 6 | 2 . . 1 . 3 . Ballistic Cannon 1 | . . . . . 1 . Launcher . | . . . . . . . Special Weapon . | . . . . . . . Impact Weapon 4 | . . . . . 4 . Slashing Weapon 3 | . . . . . 3 . Piercing Weapon . | . . . . . . . Special Melee Weapon 2 | . . . . . 2 . Unidentified Prototypes 9 | . . . 3 . 6 . Corrupted Parts 1 | . . . . . 1 . System Corruption 5 | . . . . . 5 . Parts Lost 8 | . . . . . 3 5 Power 1 | . . . . . 1 . Propulsion 4 | . . . . . 1 3 Utility 2 | . . . . . 1 1 Weapon 1 | . . . . . . 1 Highest Loss Streak 5 | . . . . . 2 5 To Critical Strikes . | . . . . . . . Average Slot Usage (%) 87 | . 98 100 90 85 83 86 Engine 7 | . 14 14 14 1 5 7 Core 3 | . . . . 12 3 . Wheel 12 | . 28 28 28 28 1 . Hover 13 | . . . . . 24 20 Device 4 | . . . . . 6 12 Storage 10 | . 14 14 14 14 9 6 Processor 5 | . . . . . 10 9 Protection 8 | . 12 14 12 14 4 . Energy Gun 7 | . . . 6 14 9 6 Ballistic Gun 6 | . 28 28 14 . . . Impact Weapon 2 | . . . . . 4 7 Slashing Weapon 1 | . . . . . 2 7 Naked Turns . | . . . . . . . Heaviest Build 35 | 12 15 15 19 22 33 35 Greatest Support 32 | 32 32 32 32 32 32 27 Greatest Overweight (x) 1 | . . . . . 1 1 Average Overweight (x) . | . . . . . . 1 Largest Inventory Capacity 8 | 8 8 8 8 8 8 8 Average Capacity 7 | 6 8 8 8 8 8 7 Most Carried 8 | 5 3 8 8 8 8 7 Average Carried 6 | 1 1 6 5 7 7 5 Final Capacity 8 | 8 8 8 8 8 8 5 Final Carried 8 | . 3 6 5 8 6 5 Class Distribution -------------------- 67% | Mutant 23% | Scavenger-Mutant 4% | Skirmisher 3% | Scavenger-Skirmisher Dominant Class ---------------- Mutant | -10/Materials Mutant | -10/Mines Mutant | -10/Exiles Mutant | -9/Mines Scavenger-Mutant | -8/Materials Mutant | -7/Factory Resources | -11 -10 -10 -10 -9 -8 -7 ----------- Run | Scr Mat Min Exi Min Mat Fac Matter Collected 770 | 227 43 30 . 100 320 50 Remotely . | . . . . . . . Salvage Created 1497 | . . 16 . 77 1303 101 Parts 78 | . . 2 . 2 69 5 Haulers Intercepted 3 | . . . . . 3 . Recyclers Shooed 1 | . . 1 . . . . Parts Field Recycled . | . . . . . . . Retrieved Matter . | . . . . . . . Parts Self-Destructed . | . . . . . . . Prevented . | . . . . . . . Kills | -11 -10 -10 -10 -9 -8 -7 ------- Run | Scr Mat Min Exi Min Mat Fac Combat Hostiles Destroyed 28 | . . 1 . 6 18 3 Melee 6 | . . . . . 3 3 Guns 20 | . . 1 . 6 13 . Classes Destroyed 12 | . . 1 . 2 9 . Worker 2 | . . . . . 2 . Builder 1 | . . . . . 1 . Hauler 3 | . . . . . 3 . Operator 3 | . . . . . 3 . Watcher 3 | . . . . . 3 . Swarmer 1 | . . 1 . . . . Grunt 9 | . . . . . 9 . Sentry 6 | . . . . . 5 1 Demolisher 1 | . . . . 1 . . Hunter 3 | . . . . . 3 . Heavy 1 | . . . . . 1 . Assembled 7 | . . . . 5 . 2 Best Kill Streak 6 | . . 1 . 6 5 2 Combat Bots Only 6 | . . 1 . 6 4 2 Max Kills in Single Turn 1 | . . 1 . 1 1 1 Gunslinging . | . . . . . . . Exploded . | . . . . . . . Melee 1 | . . . . . 1 1 Uniques/NPCs Destroyed . | . . . . . . . Combat | -11 -10 -10 -10 -9 -8 -7 -------- Run | Scr Mat Min Exi Min Mat Fac Damage Taken 1715 | . 10 60 . . 1107 538 Core 331 | . . 9 . . 273 49 Absorbed by Shields . | . . . . . . . Core Remaining (%) 82 | 100 . . . 96 50 . Volleys Fired 19 | . . 5 . . 12 2 Largest 2 | . . 2 . . 1 1 Hottest 61 | . . 40 . . 44 61 Shots Fired 125 | . . 10 . 14 99 2 Gun 123 | . . 10 . 14 97 2 Cannon 2 | . . . . . 2 . Launcher . | . . . . . . . Special . | . . . . . . . Kinetic 22 | . . 10 . . 12 . Thermal 103 | . . . . 14 87 2 Explosive . | . . . . . . . Electromagnetic . | . . . . . . . Robot Hit Streak 17 | . . 2 . 10 17 5 Robot Miss Streak 3 | . . 3 . 1 2 . Penetration Max . | . . . . . . . Secondary Targets . | . . . . . . . Autonomous 102 | . . . . 14 88 . Shots Hit Robots 146 | . . 4 . 13 123 6 Core Hits 37 | . . 1 . 6 28 2 Critical Kills 2 | . . . . . 1 1 Critical Parts Destroyed 2 | . . . . . . 2 Critical Strikes 5 | . . . . . 2 3 Destroy 1 | . . . . . 1 . Smash 3 | . . . . . . 3 Sever 1 | . . . . . 1 . Melee Attacks 47 | . . . . . 40 7 Impact 36 | . . . . . 31 5 Slashing 8 | . . . . . 6 2 Piercing . | . . . . . . . Sneak Attacks 14 | . . . . . 14 . Combat Hostiles 1 | . . . . . 1 . Follow-up Attacks 4 | . . . . . 2 2 Damage Inflicted 5236 | . . 48 . 371 4538 279 Guns 2774 | . . 48 . 371 2335 20 Cannons 50 | . . . . . 50 . Explosions . | . . . . . . . Melee 2370 | . . . . . 2111 259 Ramming 42 | . . . . . 42 . Kinetic 264 | . . 48 . . 216 . Thermal 2560 | . . . . 371 2169 20 Explosive . | . . . . . . . Electromagnetic . | . . . . . . . Impact 2141 | . . . . . 1929 212 Slashing 229 | . . . . . 182 47 Piercing . | . . . . . . . Highest Corruption 5 | . . 1 1 1 5 3 Average Corruption 1 | . . 1 1 1 5 3 Corruption Purged . | . . . . . . . Corruption Blocked . | . . . . . . . Effects 10 | . . . 5 3 2 . Message Errors 3 | . . . 2 1 . . Matter Fused 2 | . . . . 1 1 . Heat Flow Errors 3 | . . . 3 . . . Data Loss (minor) 2 | . . . . 1 1 . Overload Shots . | . . . . . . . Overflow Damage 791 | . . . . . 690 101 Projectiles 20 | . . . . . 20 . Explosions . | . . . . . . . Melee 771 | . . . . . 670 101 Knockbacks 6 | . . . . . 6 . Impact 5 | . . . . . 5 . Kinetic 1 | . . . . . 1 . Secondary . | . . . . . . . Self-Inflicted Damage 20 | . . . . . 20 . Shots . | . . . . . . . Rammed 3 | . . . . . 3 . Targets Rammed 3 | . . . . . 3 . Kicked . | . . . . . . . Crushed . | . . . . . . . Highest Temperature 209 | . . 9 209 . 12 55 Average Temperature 50 | . . 5 83 . 7 33 Received Heat Transfer 484 | . 6 . . . 378 100 Effects 1 | . . . 1 . . . Energy Bleed 1 | . . . 1 . . . Siege Activations . | . . . . . . . Robots Corrupted . | . . . . . . . Combat Hostiles . | . . . . . . . Parts Fried 5 | . . . . . 4 1 Impact Corruptions 25 | . . . . . 22 3 Robots Melted 1 | . . . . . 1 . Combat Hostiles 1 | . . . . . 1 . Parts Melted 3 | . . . . . 3 . Heat Transferred 3330 | . . . . 481 2812 37 Parts Sabotaged . | . . . . . . . Parts Stolen . | . . . . . . . Parts Stripped . | . . . . . . . Power Chain Reactions . | . . . . . . . Missiles Intercepted . | . . . . . . . Alert | -11 -10 -10 -10 -9 -8 -7 ------- Run | Scr Mat Min Exi Min Mat Fac Peak Influence 299 | . . 40 . 23 299 154 Initial 109 | . . . . . 8 109 Average 93 | . . 13 . 4 145 122 Maximum Alert Level 1 | . . . . . 1 . Low Security (%) 84 | 100 100 100 . 100 70 100 Level 1 15 | . . . . . 29 . Level 2 . | . . . . . . . Level 3 . | . . . . . . . Level 4 . | . . . . . . . Level 5 . | . . . . . . . High Security . | . . . . . . . Max Security . | . . . . . . . Squads Dispatched 5 | . . . . . 5 . Investigation . | . . . . . . . Extermination . | . . . . . . . Reinforcement 5 | . . . . . 5 . Assault . | . . . . . . . Garrison . | . . . . . . . Intercept . | . . . . . . . Searches Triggered . | . . . . . . . Construction Impeded . | . . . . . . . Haulers Reinforced . | . . . . . . . Active Scanning Responses . | . . . . . . . Cargo Convoy Interrupts . | . . . . . . . Stealth | -11 -10 -10 -10 -9 -8 -7 --------- Run | Scr Mat Min Exi Min Mat Fac Distress Signals 3 | . . . . . 3 . Communications Jammed . | . . . . . . . Distress Signals . | . . . . . . . Times Spotted 71 | . 3 5 . 10 37 16 Peak Tracking Total 12 | . 3 3 . 4 6 12 Tactical Retreats 3 | . . . . . 2 1 Traps | -11 -10 -10 -10 -9 -8 -7 ------- Run | Scr Mat Min Exi Min Mat Fac Traps Triggered . | . . . . . . . Indirectly . | . . . . . . . Trap Hack Attempts . | . . . . . . . Triggered . | . . . . . . . Disarmed . | . . . . . . . Reprogrammed . | . . . . . . . Reused 3 | . . 2 . . 1 . Traps Extracted . | . . . . . . . Installed 3 | . . 2 . . 1 . Triggered 3 | . . 2 . . 1 . Most Traps Carried 4 | . . 4 2 2 1 . Machines | -11 -10 -10 -10 -9 -8 -7 ---------- Run | Scr Mat Min Exi Min Mat Fac Machines Disabled 1 | . . . . . 1 . Max in Single Turn 1 | . . . . . 1 . Machines Sabotaged . | . . . . . . . Garrisons Compromised 1 | . . . . . . 1 Overloaded Fab Kills . | . . . . . . . Hacking | -11 -10 -10 -10 -9 -8 -7 --------- Run | Scr Mat Min Exi Min Mat Fac Machines Accessed 6 | . . . . 1 5 . Terminals 3 | . . . . . 3 . Fabricators . | . . . . . . . Repair Stations . | . . . . . . . Recycling Units . | . . . . . . . Scanalyzers 2 | . . . . . 2 . Garrison Access . | . . . . . . . Total Hacks 17 | . . . . 1 16 . Successful 13 | . . . . 1 12 . Failed 4 | . . . . . 4 . Catastrophic . | . . . . . . . Database Lockouts . | . . . . . . . Manual 1 | . . . 1 . . . Terminals 8 | . . . . . 8 . Fabricators . | . . . . . . . Repair Stations . | . . . . . . . Recycling Units . | . . . . . . . Scanalyzers 8 | . . . . . 8 . Garrison Access . | . . . . . . . Terminal Hacks 7 | . . . . 1 6 . Robot Analysis 1 | . . . . . 1 . Open Door 1 | . . . . 1 . . Alert Level 1 | . . . . . 1 . Unreport Threat 2 | . . . . . 2 . Locate Traps 1 | . . . . . 1 . Zone Layout 1 | . . . . . 1 . Fabricator Hacks . | . . . . . . . Repair Station Hacks . | . . . . . . . Recycling Unit Hacks . | . . . . . . . Scanalyzer 6 | . . . . . 6 . Insert Component 3 | . . . . . 3 . Analyze 3 | . . . . . 3 . Garrison Access Hacks . | . . . . . . . Unauthorized Hacks . | . . . . . . . Terminals . | . . . . . . . Fabricators . | . . . . . . . Repair Stations . | . . . . . . . Recycling Units . | . . . . . . . Scanalyzers . | . . . . . . . Garrison Access . | . . . . . . . Data Cores Recovered . | . . . . . . . Used . | . . . . . . . Hacking Detections 5 | . . . . . 5 . Full Trace Events 1 | . . . . . 1 . Feedback Events . | . . . . . . . Feedback Blocked . | . . . . . . . Robot Schematics Acquired . | . . . . . . . Robots Built . | . . . . . . . Authchips . | . . . . . . . Time . | . . . . . . . Total Robot Build Rating . | . . . . . . . Part Schematics Acquired 3 | . . . . . 3 . Parts Built . | . . . . . . . Authchips . | . . . . . . . Time . | . . . . . . . Total Part Build Rating . | . . . . . . . Parts Repaired . | . . . . . . . Time . | . . . . . . . Parts Recycled . | . . . . . . . Recycled Matter . | . . . . . . . Retrieved Matter . | . . . . . . . Retrieved Components . | . . . . . . . Parts Scanalyzed 3 | . . . . . 3 . Part Schematics Acquired 3 | . . . . . 3 . Parts Damaged . | . . . . . . . Bothacking | -11 -10 -10 -10 -9 -8 -7 ------------ Run | Scr Mat Min Exi Min Mat Fac Used RIF Installer . | . . . . . . . Robots Hacked 2 | . . . . . 2 . Non-combat 2 | . . . . . 2 . Combat . | . . . . . . . Robot Hacks Applied 2 | . . . . . 2 . no_distress 2 | . . . . . 2 . Relay Couplers Released . | . . . . . . . Fabnet Peak Effective % . | . . . . . . . Robots Rewired . | . . . . . . . Allies Hacked . | . . . . . . . Hacks Repelled . | . . . . . . . Allies | -11 -10 -10 -10 -9 -8 -7 -------- Run | Scr Mat Min Exi Min Mat Fac Total Allies . | . . . . . . . Largest Group . | . . . . . . . Highest-Rated Group . | . . . . . . . Highest-Rated Ally . | . . . . . . . Total Orders . | . . . . . . . Ally Attacks . | . . . . . . . Total Damage . | . . . . . . . Kills . | . . . . . . . Allies Corrupted . | . . . . . . . Allies Melted . | . . . . . . . Intel | -11 -10 -10 -10 -9 -8 -7 ------- Run | Scr Mat Min Exi Min Mat Fac Robot Analysis Total 1 | . . . . . 1 . Derelict Logs Recovered 3 | . . 2 . 1 . . Drone Launches . | . . . . . . . Drone Recoveries . | . . . . . . . Exploration | -11 -10 -10 -10 -9 -8 -7 ------------- Run | Scr Mat Min Exi Min Mat Fac Turns Passed 2321 | 47 100 259 264 342 1124 185 Spaces Moved 1831 | 44 96 230 245 319 784 113 Core 20 | 20 . . . . . . Treads . | . . . . . . . Legs 6 | . . . . . . 6 Wheels 979 | 24 96 230 245 319 65 . Hover 826 | . . . . . 719 107 Flight . | . . . . . . . Fastest Speed 50 | 50 100 100 100 100 52 118 Average Speed 102 | 77 100 100 100 100 102 126 Slowest Speed 190 | 100 100 100 100 100 150 190 Overloaded Moves . | . . . . . . . Propulsion Burnouts . | . . . . . . . Robots Hopped . | . . . . . . . Cave-ins Triggered . | . . . . . . . Exploration Rate (%) 38 | 3 25 52 60 62 62 3 Regions Visited 6 Branch Regions 3 Pre-discovered Areas . | . . . . . . . Known Exits Taken . | . . . . . . . Unknown Exits Taken 6 | 1 1 1 1 1 1 . Scrap Searched 1 | . . . . 1 . . Spaces Dug . | . . . . . . . Terrain Destroyed 11 | . . . . 1 10 . Melee . | . . . . . . . Projectile 11 | . . . . 1 10 . AOE . | . . . . . . . Terrain Rammed . | . . . . . . . Walls Destroyed . | . . . . . . . Machines Disabled . | . . . . . . . Actions | -11 -10 -10 -10 -9 -8 -7 --------- Run | Scr Mat Min Exi Min Mat Fac Total 2203 | 56 100 251 267 342 1039 148 Wait 170 | . . 2 . 16 128 24 Move 1825 | 43 95 229 244 318 783 113 Hop . | . . . . . . . Pick Up 44 | 6 4 7 7 5 14 1 Fast Attach 19 | 1 . . . . 18 . Attach 21 | 5 1 . 6 . 7 2 Detach 1 | . . . . . 1 . Swap 9 | . . 1 1 1 6 . Drop 46 | 1 . 5 9 2 28 1 Fire 19 | . . 5 . . 12 2 Melee 43 | . . . . . 38 5 Ram 3 | . . . . . 3 . Kick . | . . . . . . . Crush . | . . . . . . . Escape Stasis . | . . . . . . . Rewire . | . . . . . . . Trap 3 | . . 2 . . 1 . Miscellaneous . | . . . . . . . Route ------- -11/Scrapyard -10/Materials (discovered 2 exits: [*Min x2]) -10/Mines (discovered 2 exits: [*Mat] / *Exi) -10/Exiles -9/Mines -8/Materials (discovered 2 exits: *Fac / Sto) -7/Factory History --------- Turn | Location | Event 10 | -11/Scrapyard | Discovered new exit (range 14) 48 | -11/Scrapyard | Entered Materials 65 | -10/Materials | Discovered new exit (range 14) 138 | -10/Materials | Discovered new exit (range 6) 148 | -10/Materials | Entered Mines 184 | -10/Mines | Found a hidden stash of uninstalled traps 313 | -10/Mines | Build established: Mutant 366 | -10/Mines | Learned Materials terminal intel 385 | -10/Mines | Discovered new exit (range 15) 403 | -10/Mines | Deemed a non-threat by the Exiles lab entrance 403 | -10/Mines | Discovered new exit (range 5) 407 | -10/Mines | Entered Exiles 431 | -10/Exiles | Met 8R-AWN 449 | -10/Exiles | Met EX-HEX 477 | -10/Exiles | Met EX-BIN 491 | -10/Exiles | Aligned with FarCom system 492 | -10/Exiles | Given EX-Vault access code 520 | -10/Exiles | Opened EX-Vault 525 | -10/Exiles | Found Prototype Storage 526 | -10/Exiles | Identified Superbattery 534 | -10/Exiles | Found Prototype Energy Gun 536 | -10/Exiles | Identified AWS/Thermal 542 | -10/Exiles | Found Prototype Processor 543 | -10/Exiles | Identified 0b10 Alert Chip 580 | -10/Exiles | Warned to stay clear of 0b10 Research branches 612 | -10/Exiles | Met EX-DEC 660 | -10/Exiles | Discovered new exit (range 10) 671 | -10/Exiles | Left Exiles lab with AWS/Thermal 671 | -10/Exiles | Entered Mines 673 | -9/Mines | Met a Derelict who couldn't figure out how to use a Trap Extractor 733 | -9/Mines | Received a Rocket Launcher from a helpful Derelict 921 | -9/Mines | Learned Materials stockpile data 933 | -9/Mines | Assembled infested the area 938 | -9/Mines | Assisted by a Guerilla fighting off Assembled 1007 | -9/Mines | Discovered new exit (range 6) 1013 | -9/Mines | Entered Materials 1013 | -8/Materials | Evolved 4 slots: Propulsion x1, Utility x2, Weapon x1 1014 | -8/Materials | Identified exit to Storage 1016 | -8/Materials | Loaded intel: 12 terminal locations 1654 | -8/Materials | Build established: Scavenger-Mutant 2123 | -8/Materials | Discovered new exit (range 12) 2137 | -8/Materials | Entered Factory 2137 | -7/Factory | Evolved 2 slots: Propulsion x1, Weapon x1 2227 | -7/Factory | Build established: Mutant 2322 | -7/Factory | Self-destructed Last Messages --------------- 02303_ Axe follow-up attack on as-03881. 02304_ Imp. Hover Unit destroyed. 02306_ as-09176 emerges from the garrison. 02306_ as-64444 emerges from the garrison. 02306_ as-73491 emerges from the garrison. 02306_ Destroyed Asb. F-torch. 02306_ as-03881 system corrupted by crushing effect. 02308_ Critical hit (Burn: +80). 02309_ Cmb. Airjet destroyed. 02309_ as-64444 suffers critical hit (Smash). 02309_ as-64444 destroyed. 02310_ Adv. Beam Rifle destroyed. 02312_ Aerolev Unit destroyed. 02315_ as-26525 emerges from the garrison. 02315_ as-93513 emerges from the garrison. 02315_ as-73825 emerges from the garrison. 02315_ Garrison Access remotely disabled. 02319_ Sml. Storage Unit destroyed. 02319_ System corrupted by crushing effect (+3). 02322_ Garrison Access disabled. Map ----- +----------------------------------------------------+ | ?????????????????????????????????????????????????? | | ?????????????????????????????????????????????????? | | ?????????????????????????????????????????????????? | | ?????????????????????????????????????????????????? | | ?????????????????????????????????????????????????? | | ?????????????????????????????????????????????????? | | ?????????????????????????????????????????????????? | | ?????????????????????????????????????????????????? | | ?????????????????????????????????????????????????? | | ?????????????????????????????????????????????????? | | ?????????????????????????????????????????????????? | | ?????????????????????????????????????????????????? | | ?????????????????????????????????????????????????? | | ?????????????????????????????????????????????????? | | ?????????????????????????????????????????????????? | | ?????????????????????????????????????????????????? | | ??????????????# ?????????????????????????????????? | | ??????????????# ?????????????????????????????????? | | ??????????????# ?????????????????????????????????? | | #######???????# ?????????????????????????????????? | | #????# ?????????????????????????????????? | | #????# ??###########????????????????????? | | ! #????# ??# #????????????????????? | | #??### ### aaa " #????????????????????? | | " """ #??# ! # %a a"" #????????????????????? | | " """ #### # """ a@G #????????????????????? | | " """ + %+ """ a"" #????????????????????? | | #### # """ " #????????????????????? | | " """ #??# # #????????????????????? | | " """ ] #??## ## a #????????????????????? | | " """ #???# #######/####????????????????????? | | #???# #?????# #???????????????????????? | | ############## #######+##??????????????????????? | | #??# # # #??????????????????????? | | #??# # # #??????????????????????? | | #??# # # #??????????????????????? | | #??# + + #??????????????????????? | | #??# # # #??????????????????????? | | ##?# # # #??????????????????????? | | #?# # # #??????????????????????? | | #?# ! # *#! #??????????????????????? | | #?########+## =[+% #??????????????????????? | | #????????# [##########??????????????????????? | | ##???????# #???????????????????????????????? | | #???????# ######???????????????????????????????? | | ######### #????????????????????????????????????? | | #????????????????????????????????????? | | ###########????????????????????????????????????? | | #??????????????????????????????????????????????? | | ###??????????????????????????????????????????????? | +----------------------------------------------------+ Best States ------------- Heat Dissipation 34 Energy Generation 16 Energy Capacity 290 Matter Stores 300 Matter Capacity 300 Sight Range 16 Terrain Scan Density 10 Armor Coverage 150 Melee Speed Boost 20 Evasion (%) 54 Targeting Accuracy 10 Force Boost 20 Salvage Targeting 4 Item Schematics ----------------- Cmb. Airjet | -8/Materials | Scanalyzed Force Booster | -8/Materials | Scanalyzed Axe | -8/Materials | Scanalyzed Robot Schematics ------------------ None Fabricated ------------ Nothing Alien Tech Used ----------------- None Achievements -------------- None Challenges ------------ None Game ------ Seed RestorationMakeshiftLoader Manual? 0 Play Time 00:24:48 Cumulative 39.2 hours Start 2022.03.25 @ 09:08:52 End 2022.03.25 @ 09:33:35 Sessions 1 Manual Loads 0 Difficulty Rogue Special Mode None Game No. 115 Rogue 115 Adventurer 0 Explorer 0 Win Type - Total 0 Types 0/0/0/0/0/0/0/0/0 Lore% 32 Gallery% 45 Achievement% 34 Wizard Run 0 Options --------- ASCII 0 Keyboard 0 Movement Arrows Keybinds 0 Fullscreen 1 Font 18/SmallcapsGlow Map View 76x50 Tactical HUD 1 Map Filters NONE Filters NONE Steam 1 RUN: 539b39ef-77a4-4c13-a3c4-2a002a103c24